Workbook

Sheet Inicio IS-RM
A25: Descargue la versión Kindle
K33: Miguel Cervantes Jiménez

Sheet Taylor (hidden)
A1: LA REGLA DE TAYLOR
A3: REGLA DE TAYLOR (caso 1)
A4: rnominal | B4: rnat | C4: ap | D4: p | E4: p0 | F4: ay | G4: yo | H4: ybarra | I4: (yo-ybarra)/ybarra
A5: ='Oculto IS-RM'!U5 -> 3.0% | B5: 3.0% | C5: 0.25 | D5: 3.0% | E5: 3.0% | F5: 0.75 | G5: 11,000 | H5: 11,000 | I5: ='Oculto IS-RM'!AC5 -> 0.00%
A7: REGLA DE TAYLOR (caso 2)
A8: rnominal | B8: rnat | C8: ap | D8: p | E8: p0 | F8: ay | G8: yo | H8: ybarra | I8: (yo-ybarra)/ybarra
A9: ='Oculto IS-RM'!U9 -> 3.0% | B9: =B5 -> 3.0% | C9: 0.25 | D9: 3.0% | E9: 3.0% | F9: 0.75 | G9: 11,000 | H9: 11,000 | I9: ='Oculto IS-RM'!AC9 -> 0.00%
A11: VARIACIÓN DE LA REGLA DE TAYLOR (caso 2 menos caso 1)
A12: rnominal | B12: rnat | C12: ap | D12: p | E12: p0 | F12: ay | G12: yo | H12: ybarra | I12: (yo-ybarra)/ybarra
A13: ='Oculto IS-RM'!U13 -> 0.0% | B13: ='Oculto IS-RM'!V13 -> 0.0% | C13: ='Oculto IS-RM'!W13 -> 0.0% | D13: ='Oculto IS-RM'!X13 -> 0.0% | E13: ='Oculto IS-RM'!Y13 -> 0.0% | F13: ='Oculto IS-RM'!Z13 -> 0.0% | G13: ='Oculto IS-RM'!AA13 -> 0 | H13: ='Oculto IS-RM'!AB13 -> 0 | I13: ='Oculto IS-RM'!AC13 -> 0.0%
A36: Títulos
A37: Resultados
A38: Insertar datos
A39: Equilibrio
A40: Política económica

Sheet IS_RM (hidden)
A1: MODELO IS-MR
B3: DEMANDA AGREGADA
B4: Y | C4: C | D4: I | E4: G | I4: VARIABLES | J4: ORIGINAL | K4: CHOQUE | L4: VAR ABS | M4: VAR REL
B5: ='Oculto IS-RM'!A27 -> 10,000 | C5: ='Oculto IS-RM'!B27 -> 7,600 | D5: ='Oculto IS-RM'!C27 -> 1,400 | E5: ='Oculto IS-RM'!D27 -> 1,000 | I5: Y | J5: ='Oculto IS-RM'!N58 -> 10,000.0 | K5: ='Oculto IS-RM'!O58 -> 10,000.0 | L5: =K5-J5 -> 0 | M5: ='Oculto IS-RM'!Q58 -> 0%
B6: =B5/$B$5 -> 100% | C6: =C5/$B$5 -> 76% | D6: =D5/$B$5 -> 14% | E6: =E5/$B$5 -> 10% | I6: r | J6: ='Oculto IS-RM'!N59 -> 4.0% | K6: ='Oculto IS-RM'!O59 -> 4.0% | L6: ='Oculto IS-RM'!P59 -> 0.0%
I7: C | J7: ='Oculto IS-RM'!N60 -> 7,600.0 | K7: ='Oculto IS-RM'!O60 -> 7,600.0 | L7: ='Oculto IS-RM'!P60 -> 0 | M7: ='Oculto IS-RM'!Q60 -> 0%
B8: FUNCIÓN CONSUMO | I8: S | J8: ='Oculto IS-RM'!N61 -> 1,400.0 | K8: ='Oculto IS-RM'!O61 -> 1,400.0 | L8: ='Oculto IS-RM'!P61 -> 0 | M8: ='Oculto IS-RM'!Q61 -> 0%
B9: C | C9: b0 | D9: b1 | E9: T0 | I9: I | J9: ='Oculto IS-RM'!N62 -> 1,400.0 | K9: ='Oculto IS-RM'!O62 -> 1,400.0 | L9: ='Oculto IS-RM'!P62 -> 0 | M9: ='Oculto IS-RM'!Q62 -> 0%
B10: ='Oculto IS-RM'!A30 -> 7,600 | C10: 400 | D10: 0.80 | E10: 1,000 | I10: G | J10: ='Oculto IS-RM'!N63 -> 1,000.0 | K10: ='Oculto IS-RM'!O63 -> 1,000.0 | L10: ='Oculto IS-RM'!P63 -> 0 | M10: ='Oculto IS-RM'!Q63 -> 0%
I11: T | J11: ='Oculto IS-RM'!N64 -> 1,000.0 | K11: ='Oculto IS-RM'!O64 -> 1,000.0 | L11: ='Oculto IS-RM'!P64 -> 0 | M11: ='Oculto IS-RM'!Q64 -> 0%
B12: FUNCIÓN INVERSIÓN | I12: DP | J12: ='Oculto IS-RM'!N65 -> 0 | K12: ='Oculto IS-RM'!O65 -> 0 | L12: ='Oculto IS-RM'!P65 -> 0 | M12: ='Oculto IS-RM'!Q65 -> 0.0%
B13: I | C13: i0 | D13: i1 | I13: Pendiente IS | J13: ='Oculto IS-RM'!N69 -> -0.00001 | K13: ='Oculto IS-RM'!O69 -> -0.00001 | L13: ='Oculto IS-RM'!P69 -> 0 | M13: ='Oculto IS-RM'!Q69 -> 0%
B14: ='Oculto IS-RM'!A36 -> 1,400 | C14: 2,000 | D14: (15,000) | I14: Pendiente RM | J14: ='Oculto IS-RM'!N71 -> 0.00005 | K14: ='Oculto IS-RM'!O71 -> 0.00005 | L14: ='Oculto IS-RM'!P71 -> 0 | M14: ='Oculto IS-RM'!Q71 -> 0%
J15: Esta seccion muestra los efectos de la Política Económica
B16: GASTO DE GOBIERNO | E16: Déficit Público
B17: G | C17: G0 | E17: T-G
B18: ='Oculto IS-RM'!A39 -> 1,000 | C18: 1,000 | E18: ='Oculto IS-RM'!D39 -> 0
B20: REGLA DE TAYLOR
B21: rr | C21: rnat | D21: p | E21: pe | F21: ap | G21: p0 | H21: ay | I21: ybarra
B22: ='Oculto IS-RM'!A42 -> 4.0% | C22: 4.0% | D22: 3.0% | E22: 3.0% | F22: 0.50 | G22: 3.0% | H22: 0.50 | I22: 10,000
B24: VALORES DE EQUILIBRIO INICIAL
B25: Y | C25: rnat | D25: MULTIPLICADOR | E25: Pend. IS | F25: Pend. MR
B26: ='Oculto IS-RM'!A48 -> 10,000 | C26: ='Oculto IS-RM'!B48 -> 4.0% | D26: ='Oculto IS-RM'!C48 -> 1.053 | E26: ='Oculto IS-RM'!D48 -> -0.000013 | F26: ='Oculto IS-RM'!E48 -> 0.000050
B28: POLÍTICA ECONÓMICA
B29: MONETARIA | F29: FISCAL
B30: p | C30: pe | D30: p0 | E30: ybarra | F30: T1 | G30: G1
B31: ='Oculto IS-RM'!A53 -> 3.0% | C31: 5.0% | D31: ='Oculto IS-RM'!C53 -> 3.0% | E31: ='Oculto IS-RM'!D53 -> 10,000 | F31: ='Oculto IS-RM'!E53 -> 1,000 | G31: ='Oculto IS-RM'!F53 -> 1,000
B32: 0% | C32: 0% | D32: 0% | E32: 0% | F32: 0% | G32: 0%
B34: NUEVOS VALORES DE EQUILIBRIO
B35: Y | C35: rn | D35: Pend. IS | E35: Pend. MR
B36: ='Oculto IS-RM'!L48 -> 10,000 | C36: ='Oculto IS-RM'!M48 -> 4.0% | D36: ='Oculto IS-RM'!O48 -> -0.000013 | E36: ='Oculto IS-RM'!P48 -> 0.000050
B38: Títulos
B39: Resultados
B40: Insertar datos
B41: Equilibrio
B42: Política económica

Sheet IS_RM_ER (hidden)
A1: MODELO IS-MR-ER
B3: DEMANDA AGREGADA
B4: Y | C4: C | D4: I | E4: G | F4: X | G4: Q | I4: VARIABLES | J4: ORIGINAL | K4: CHOQUE | L4: VAR ABS | M4: VAR REL
B5: ='Oculto IS-RM'!AH27 -> 9,247 | C5: ='Oculto IS-RM'!AI27 -> 6,998 | D5: ='Oculto IS-RM'!AJ27 -> 1,250 | E5: ='Oculto IS-RM'!AK27 -> 1,000 | F5: ='Oculto IS-RM'!AL27 -> 2,948 | G5: ='Oculto IS-RM'!AM27 -> 2,948 | I5: ='Oculto IS-RM'!AT64 -> Y | J5: ='Oculto IS-RM'!AU64 -> 9,247.4 | K5: ='Oculto IS-RM'!AV64 -> 9,247.4 | L5: ='Oculto IS-RM'!AW64 -> 0 | M5: ='Oculto IS-RM'!AX64 -> 0.00%
B6: =B5/$B$5 -> 100% | C6: 76% | D6: 14% | E6: 11% | F6: 32% | G6: 32% | I6: ='Oculto IS-RM'!AT65 -> r | J6: ='Oculto IS-RM'!AU65 -> 5.00% | K6: ='Oculto IS-RM'!AV65 -> 5.00% | L6: ='Oculto IS-RM'!AW65 -> 0.00%
I7: ='Oculto IS-RM'!AT66 -> C | J7: ='Oculto IS-RM'!AU66 -> 6,997.9 | K7: ='Oculto IS-RM'!AV66 -> 6,997.9 | L7: ='Oculto IS-RM'!AW66 -> 0 | M7: ='Oculto IS-RM'!AX66 -> 0.00%
B8: FUNCIÓN CONSUMO | I8: ='Oculto IS-RM'!AT67 -> S | J8: ='Oculto IS-RM'!AU67 -> 1,249.5 | K8: ='Oculto IS-RM'!AV67 -> 1,249.5 | L8: ='Oculto IS-RM'!AW67 -> 0 | M8: ='Oculto IS-RM'!AX67 -> 0.00%
B9: C | C9: b0 | D9: b1 | E9: T0 | I9: ='Oculto IS-RM'!AT68 -> I | J9: ='Oculto IS-RM'!AU68 -> 1,249.7 | K9: ='Oculto IS-RM'!AV68 -> 1,249.7 | L9: ='Oculto IS-RM'!AW68 -> 0 | M9: ='Oculto IS-RM'!AX68 -> 0.00%
B10: ='Oculto IS-RM'!AH30 -> 6,998 | C10: 400 | D10: 0.80 | E10: 1,000 | I10: ='Oculto IS-RM'!AT69 -> G | J10: ='Oculto IS-RM'!AU69 -> 1,000.0 | K10: ='Oculto IS-RM'!AV69 -> 1,000.0 | L10: ='Oculto IS-RM'!AW69 -> 0 | M10: ='Oculto IS-RM'!AX69 -> 0.00%
I11: ='Oculto IS-RM'!AT70 -> T | J11: ='Oculto IS-RM'!AU70 -> 1,000.0 | K11: ='Oculto IS-RM'!AV70 -> 1,000.0 | L11: ='Oculto IS-RM'!AW70 -> 0 | M11: ='Oculto IS-RM'!AX70 -> 0.00%
B12: FUNCIÓN INVERSIÓN | I12: ='Oculto IS-RM'!AT71 -> DP | J12: ='Oculto IS-RM'!AU71 -> 0 | K12: ='Oculto IS-RM'!AV71 -> 0 | L12: ='Oculto IS-RM'!AW71 -> 0 | M12: ='Oculto IS-RM'!AX71 -> 0.00%
B13: I | C13: i0 | D13: i1 | I13: ='Oculto IS-RM'!AT72 -> X | J13: ='Oculto IS-RM'!AU72 -> 2,948.0 | K13: ='Oculto IS-RM'!AV72 -> 2,948.0 | L13: ='Oculto IS-RM'!AW72 -> 0 | M13: ='Oculto IS-RM'!AX72 -> 0.00%
B14: ='Oculto IS-RM'!AH36 -> 1,250 | C14: 2,000 | D14: (15,000) | I14: ='Oculto IS-RM'!AT73 -> Q | J14: ='Oculto IS-RM'!AU73 -> 2,948.2 | K14: ='Oculto IS-RM'!AV73 -> 2,948.2 | L14: ='Oculto IS-RM'!AW73 -> 0 | M14: ='Oculto IS-RM'!AX73 -> 0.00%
I15: ='Oculto IS-RM'!AT74 -> TC | J15: ='Oculto IS-RM'!AU74 -> 16.0 | K15: ='Oculto IS-RM'!AV74 -> 16.0 | L15: ='Oculto IS-RM'!AW74 -> 0 | M15: ='Oculto IS-RM'!AX74 -> 0.00%
B16: GASTO DE GOBIERNO | E16: Déficit Público | I16: YRM | J16: ='Oculto IS-RM'!AU75 -> 100,000.0 | K16: ='Oculto IS-RM'!AV75 -> 100,000.0 | L16: ='Oculto IS-RM'!AW75 -> 0 | M16: ='Oculto IS-RM'!AX75 -> 0.00%
B17: G | C17: G0 | E17: T-G | I17: ='Oculto IS-RM'!AT76 -> rRM | J17: ='Oculto IS-RM'!AU76 -> 3.00% | K17: ='Oculto IS-RM'!AV76 -> 3.00% | L17: ='Oculto IS-RM'!AW76 -> 0
B18: ='Oculto IS-RM'!AH39 -> 1,000 | C18: 1,000 | E18: ='Oculto IS-RM'!AK39 -> 0 | I18: ='Oculto IS-RM'!AT77 -> P-Pe | J18: ='Oculto IS-RM'!AU77 -> 0.00% | K18: ='Oculto IS-RM'!AV77 -> 0.00% | L18: ='Oculto IS-RM'!AW77 -> 0
I19: ='Oculto IS-RM'!AT78 -> P-Po | J19: ='Oculto IS-RM'!AU78 -> 0.00% | K19: ='Oculto IS-RM'!AV78 -> 0.00% | L19: ='Oculto IS-RM'!AW78 -> 0
B20: FUNCION EXPORTACIONES | I20: ='Oculto IS-RM'!AT79 -> (Y-Ybar)/Ybar | J20: ='Oculto IS-RM'!AU79 -> 0.00% | K20: ='Oculto IS-RM'!AV79 -> 0.00% | L20: ='Oculto IS-RM'!AW79 -> 0.00%
B21: X | C21: x0 | D21: x1 | E21: YRM | F21: x2 | G21: TC | J21: Esta seccion muestra los efectos de la Política Económica
B22: ='Oculto IS-RM'!AH42 -> 2,948 | C22: 940 | D22: 0.02 | E22: 100,000 | F22: 0.5 | G22: ='Oculto IS-RM'!AM42 -> 16.0
B24: FUNCION IMPORTACIONES
B25: Q | C25: q0 | D25: q1 | E25: Y | F25: q2 | G25: TC
B26: ='Oculto IS-RM'!AH45 -> 2,948 | C26: 182 | D26: 0.3 | E26: ='Oculto IS-RM'!AK45 -> 9,247 | F26: -0.5 | G26: ='Oculto IS-RM'!AM45 -> 16.0
B28: REGLA DE TAYLOR
B29: rr | C29: rnat | D29: p | E29: pe | F29: ap | G29: p0 | H29: ay | I29: ybarra
B30: ='Oculto IS-RM'!AH48 -> 5.0% | C30: 5.0% | D30: 3.0% | E30: 3.0% | F30: 0.50 | G30: 3.0% | H30: 0.50 | I30: 9247.0
B32: TIPO DE CAMBIO
B33: TC | C33: e0 | D33: e1 | E33: rn | F33: rRM
B34: ='Oculto IS-RM'!AH51 -> 16.0 | C34: 20 | D34: (200.00) | E34: ='Oculto IS-RM'!AK51 -> 5% | F34: 3.0%
B36: VALORES DE EQUILIBRIO INICIAL
B37: Y | C37: rn | D37: MULTIPLICADOR | E37: Pend. IS | F37: Pend. MR
B38: ='Oculto IS-RM'!AH54 -> 9,247.38 | C38: ='Oculto IS-RM'!AI54 -> 5.0% | D38: ='Oculto IS-RM'!AJ54 -> 0.756 | E38: ='Oculto IS-RM'!AK54 -> -0.000033 | F38: ='Oculto IS-RM'!AL54 -> 0.000054
B40: POLÍTICA ECONÓMICA
B41: MONETARIA
B42: p | C42: pe | D42: p0 | E42: ybarra
B43: ='Oculto IS-RM'!AH59 -> 3.0% | C43: ='Oculto IS-RM'!AI59 -> 3.0% | D43: ='Oculto IS-RM'!AJ59 -> 3.0% | E43: ='Oculto IS-RM'!AK59 -> 9,247
B44: 0% | C44: 0% | D44: 0% | E44: 0%
B46: FISCAL | D46: CHOQUE EXTERNO
B47: T1 | C47: G1 | D47: YRM | E47: rRM
B48: ='Oculto IS-RM'!AH64 -> 1,000 | C48: ='Oculto IS-RM'!AI64 -> 1,000 | D48: ='Oculto IS-RM'!AJ64 -> 100,000 | E48: ='Oculto IS-RM'!AK64 -> 3.0%
B49: 0% | C49: 0% | D49: 0% | E49: 0%
B51: NUEVOS VALORES DE EQUILIBRIO
B52: Y | C52: rn | D52: Pend. IS | E52: Pend. MR
B53: ='Oculto IS-RM'!AH54 -> 9,247 | C53: ='Oculto IS-RM'!AI54 -> 5.0% | D53: ='Oculto IS-RM'!AK54 -> -0.000033 | E53: ='Oculto IS-RM'!AL54 -> 0.000054
B55: Títulos
B56: Resultados
B57: Insertar datos
B58: Valores de equilibrio
B59: Política económica

Sheet Oculto IS-RM (hidden)
A1: IS-RM | L1: IS-RM (MOV) ECONOMÍA CERRADA CON GOBIERNO Y PRECIOS RÍGIDOS | U1: REGLA DE TAYLOR | AH1: IS-RM | AS1: IS-RM (MOV) ECONOMÍA CERRADA CON GOBIERNO Y PRECIOS RÍGIDOS
A2: Unidades | B2: ponderador | C2: IS(Y) | D2: IS(rn) | E2: LM(rn) | F2: LM(Y) | G2: ISLine | I2: LMLine | L2: IS(Y) | M2: IS(rn) | N2: LM(rn) | O2: LM(Y) | P2: ISMovLine | R2: LMMovLine | AH2: Unidades | AI2: ponderador | AJ2: IS(Y) | AK2: IS(rn) | AL2: LM(rn) | AM2: LM(Y) | AN2: ISLine | AP2: LMLine | AS2: IS(Y) | AT2: IS(rn) | AU2: LM(rn) | AV2: LM(Y) | AW2: ISMovLine | AY2: LMMovLine | BB2: r | BC2: tc | BD2: ISMovLine | BF2: LMMovLine
A3: 0 | B3: =B4-$G$27 -> 0.01 | C3: =((1/(1-($C$30)))*($B$30+($C$30*$D$30*-1)+$B$36+$B$39))-((1/(1-($C$30)))*$C$36*D3) -> 12,970.00 | D3: =$B$48*B3 -> 0.04% | E3: =$B$42+$C$42-$D$42+($E$42*($C$42-$F$42))+(((F3-$H$42)/$H$42)*$G$42) -> 18.85% | F3: =C3 -> 12,970.00 | G3: =C$13 -> 10,000.00 | H3: =I3*($A3/$A$23) -> 0 | I3: =D$13 -> 0.04 | J3: =G3*$A3/$A$23 -> 0 | L3: =((1/Q$48)*(R$48))-((1/Q$48)*(N$36*M3)) -> 12,970.00 | M3: =M$48*B3 -> 0.04% | N3: =$M$42+$N$42-$O$42+($P$42*($N$42-$Q$42))+(((O3-$S$42)/$S$42)*$R$42) -> 18.85% | O3: =L3 -> 12,970.00 | P3: =L$13 -> 10,000.00 | Q3: =R3*($A3/$A$23) -> 0 | R3: =M$13 -> 0.04 | S3: =P3*$A3/$A$23 -> 0 | U3: REGLA DE TAYLOR (caso 1) | AH3: 0 | AI3: =AI4-$AN$27 -> 0.01 | AJ3: =((1/(1-$AJ$30+$AJ$45))*($AI$30+($AJ$30*$AK$30*-1)+$AI$36+$AI$39+$AI$42+($AI$45*-1)+($AJ$42*$AK$42)+($AL$42-$AL$45)*($AI$51+($AJ$51*-1)*$AL$51)))-((($AJ$51*-1)*($AL$42-$AL$45)+($AJ$36*-1)/(1-$AJ$30+$AJ$45))*AK3) -> 10,752.89 | AK3: =$AI$54*AI3 -> 0.05% | AL3: =$AI$48+$AJ$48-$AK$48+$AL$48*($AJ$48-$AM$48)-$AN$48+(($AN$48/$AO$48)*AM3) -> 13.14% | AM3: =AJ3 -> 10,752.89 | AN3: =AJ$13 -> 9,257.38 | AO3: =AP3*($AH3/$AH$23) -> 0.00% | AP3: =AK$13 -> 5.00% | AQ3: =AN3*$AH3/$AH$23 -> 0 | AS3: =((1/(1-$AU$30+$AU$45))*($AT$30+($AU$30*$AV$30*-1)+$AT$36+$AT$39+$AT$42+($AT$45*-1)+($AU$42*$AV$42)+($AW$42-$AW$45)*($AT$51+($AU$51*-1)*$AW$51)))-((($AU$51*-1)*($AW$42-$AW$45)+($AU$36*-1)/(1-$AU$30+$AU$45))*AT3) -> 10,752.89 | AT3: =AT$54*AI3 -> 0.05% | AU3: =$AT$48+$AU$48-$AV$48+$AW$48*($AU$48-$AX$48)-$AY$48+(($AY$48/$AZ$48)*AV3) -> 0.1314 | AV3: =AS3 -> 10,752.89 | AW3: =AS$13 -> 9,257.38 | AX3: =AY3*($A3/$A$23) -> 0.00% | AY3: =AT$13 -> 5.00% | AZ3: =AW3*$A3/$A$23 -> 0 | BB3: =AK3 -> 0.05% | BC3: =$AI$51+($AJ$51*(BB3-$AL$51)) -> 25.90 | BD3: =$BC$13 -> 16.00 | BE3: =BF3*($A3/$A$23) -> 0 | BF3: =$BB$13 -> 0.05 | BG3: =BD3*$A3/$A$23 -> 0
A4: 1 | B4: 0.11 | C4: 12,673.00 | D4: 0.44% | E4: 17.37% | F4: 12,673.00 | G4: =C$13 -> 10,000.00 | H4: 0.00 | I4: =D$13 -> 0.04 | J4: 500.00 | L4: 12,673.00 | M4: 0.44% | N4: 17.37% | O4: =L4 -> 12,673.00 | P4: =L$13 -> 10,000.00 | Q4: 0.00 | R4: =M$13 -> 0.04 | S4: 500.00 | U4: rt | V4: rt-1 | W4: d-1 | X4: p | Y4: p0 | Z4: y | AA4: yo | AB4: ybarra | AC4: (yo-ybarra)/ybarra | AH4: 1 | AI4: 0.11 | AJ4: 10,603.34 | AK4: 0.55% | AL4: 12.33% | AM4: 10,603.34 | AN4: =AJ$13 -> 9,257.38 | AO4: 0.25% | AP4: =AK$13 -> 5.00% | AQ4: 462.87 | AS4: 10,603.34 | AT4: 0.55% | AU4: 0.1233 | AV4: =AS4 -> 10,603.34 | AW4: =AS$13 -> 9,257.38 | AX4: =AY4*($A4/$A$23) -> 0.25% | AY4: =AT$13 -> 5.00% | AZ4: =AW4*$A4/$A$23 -> 462.87 | BB4: 0.55% | BC4: 24.91 | BD4: =$BC$13 -> 16.00 | BE4: =BF4*($A4/$A$23) -> 0.00 | BF4: =$BB$13 -> 0.05 | BG4: 0.80
A5: 2 | B5: 0.21 | C5: 12,376.00 | D5: 0.83% | E5: 15.88% | F5: 12,376.00 | G5: 10,000.00 | H5: 0.00 | I5: 0.04 | J5: 1,000.00 | L5: 12,376.00 | M5: 0.83% | N5: 15.88% | O5: 12,376.00 | P5: 10,000.00 | Q5: 0.00 | R5: 0.04 | S5: 1,000.00 | U5: =V5+(W5*(X5-Y5))+(Z5*((AA5-AB5)/AB5)) -> 3.0% | V5: =Taylor!B5 -> 3.0% | W5: =Taylor!C5 -> 0.25 | X5: =Taylor!D5 -> 3.0% | Y5: =Taylor!E5 -> 3.0% | Z5: =Taylor!F5 -> 0.75 | AA5: =Taylor!G5 -> 11000.0 | AB5: =Taylor!H5 -> 11000.0 | AC5: =(AA5-AB5)/AB5 -> 0.00% | AH5: 2 | AI5: 0.21 | AJ5: 10,453.79 | AK5: 1.04% | AL5: 11.53% | AM5: 10,453.79 | AN5: 9,257.38 | AO5: 0.50% | AP5: 5.00% | AQ5: 925.74 | AS5: 10,453.79 | AT5: 1.04% | AU5: 0.1153 | AV5: 10,453.79 | AW5: 9,257.38 | AX5: 0.50% | AY5: 5.00% | AZ5: 925.74 | BB5: 1.04% | BC5: 23.92 | BD5: 16.00 | BE5: 0.01 | BF5: 0.05 | BG5: 1.60
A6: 3 | B6: 0.31 | C6: 12,079.00 | D6: 1.23% | E6: 14.40% | F6: 12,079.00 | G6: 10,000.00 | H6: 0.01 | I6: 0.04 | J6: 1,500.00 | L6: 12,079.00 | M6: 1.23% | N6: 14.40% | O6: 12,079.00 | P6: 10,000.00 | Q6: 0.01 | R6: 0.04 | S6: 1,500.00 | AH6: 3 | AI6: 0.31 | AJ6: 10,304.24 | AK6: 1.54% | AL6: 10.72% | AM6: 10,304.24 | AN6: 9,257.38 | AO6: 0.75% | AP6: 5.00% | AQ6: 1,388.61 | AS6: 10,304.24 | AT6: 1.54% | AU6: 0.1072 | AV6: 10,304.24 | AW6: 9,257.38 | AX6: 0.75% | AY6: 5.00% | AZ6: 1,388.61 | BB6: 1.54% | BC6: 22.93 | BD6: 16.00 | BE6: 0.01 | BF6: 0.05 | BG6: 2.40
A7: 4 | B7: 0.41 | C7: 11,782.00 | D7: 1.62% | E7: 12.91% | F7: 11,782.00 | G7: 10,000.00 | H7: 0.01 | I7: 0.04 | J7: 2,000.00 | L7: 11,782.00 | M7: 1.62% | N7: 12.91% | O7: 11,782.00 | P7: 10,000.00 | Q7: 0.01 | R7: 0.04 | S7: 2,000.00 | U7: REGLA DE TAYLOR (caso 2) | AH7: 4 | AI7: 0.41 | AJ7: 10,154.69 | AK7: 2.03% | AL7: 9.91% | AM7: 10,154.69 | AN7: 9,257.38 | AO7: 1.00% | AP7: 5.00% | AQ7: 1,851.48 | AS7: 10,154.69 | AT7: 2.03% | AU7: 0.0991 | AV7: 10,154.69 | AW7: 9,257.38 | AX7: 1.00% | AY7: 5.00% | AZ7: 1,851.48 | BB7: 2.03% | BC7: 21.94 | BD7: 16.00 | BE7: 0.01 | BF7: 0.05 | BG7: 3.20
A8: 5 | B8: 0.51 | C8: 11,485.00 | D8: 2.02% | E8: 11.43% | F8: 11,485.00 | G8: 10,000.00 | H8: 0.01 | I8: 0.04 | J8: 2,500.00 | L8: 11,485.00 | M8: 2.02% | N8: 11.43% | O8: 11,485.00 | P8: 10,000.00 | Q8: 0.01 | R8: 0.04 | S8: 2,500.00 | U8: rt | V8: rt-1 | W8: d-1 | X8: p | Y8: p0 | Z8: y | AA8: yo | AB8: ybarra | AC8: (yo-ybarra)/ybarra | AH8: 5 | AI8: 0.51 | AJ8: 10,005.14 | AK8: 2.53% | AL8: 9.10% | AM8: 10,005.14 | AN8: 9,257.38 | AO8: 1.25% | AP8: 5.00% | AQ8: 2,314.35 | AS8: 10,005.14 | AT8: 2.53% | AU8: 0.0910 | AV8: 10,005.14 | AW8: 9,257.38 | AX8: 1.25% | AY8: 5.00% | AZ8: 2,314.35 | BB8: 2.53% | BC8: 20.95 | BD8: 16.00 | BE8: 0.01 | BF8: 0.05 | BG8: 4.00
A9: 6 | B9: 0.60 | C9: 11,188.00 | D9: 2.42% | E9: 9.94% | F9: 11,188.00 | G9: 10,000.00 | H9: 0.01 | I9: 0.04 | J9: 3,000.00 | L9: 11,188.00 | M9: 2.42% | N9: 9.94% | O9: 11,188.00 | P9: 10,000.00 | Q9: 0.01 | R9: 0.04 | S9: 3,000.00 | U9: =V9+(W9*(X9-Y9))+(Z9*((AA9-AB9)/AB9)) -> 3.0% | V9: =Taylor!B9 -> 3.0% | W9: =Taylor!C9 -> 0.25 | X9: =Taylor!D9 -> 3.0% | Y9: =Taylor!E9 -> 3.0% | Z9: =Taylor!F9 -> 0.75 | AA9: =Taylor!G9 -> 11000.0 | AB9: =Taylor!H9 -> 11000.0 | AC9: =(AA9-AB9)/AB9 -> 0.00% | AE9: tc | AF9: =AI51+(AJ51*(AF20-AL51)) -> 7.54 | AH9: 6 | AI9: 0.60 | AJ9: 9,855.59 | AK9: 3.02% | AL9: 8.29% | AM9: 9,855.59 | AN9: 9,257.38 | AO9: 1.50% | AP9: 5.00% | AQ9: 2,777.21 | AS9: 9,855.59 | AT9: 3.02% | AU9: 0.0829 | AV9: 9,855.59 | AW9: 9,257.38 | AX9: 1.50% | AY9: 5.00% | AZ9: 2,777.21 | BB9: 3.02% | BC9: 19.96 | BD9: 16.00 | BE9: 0.02 | BF9: 0.05 | BG9: 4.80
A10: 7 | B10: 0.70 | C10: 10,891.00 | D10: 2.81% | E10: 8.46% | F10: 10,891.00 | G10: 10,000.00 | H10: 0.01 | I10: 0.04 | J10: 3,500.00 | L10: 10,891.00 | M10: 2.81% | N10: 8.46% | O10: 10,891.00 | P10: 10,000.00 | Q10: 0.01 | R10: 0.04 | S10: 3,500.00 | AH10: 7 | AI10: 0.70 | AJ10: 9,706.04 | AK10: 3.52% | AL10: 7.48% | AM10: 9,706.04 | AN10: 9,257.38 | AO10: 1.75% | AP10: 5.00% | AQ10: 3,240.08 | AS10: 9,706.04 | AT10: 3.52% | AU10: 0.0748 | AV10: 9,706.04 | AW10: 9,257.38 | AX10: 1.75% | AY10: 5.00% | AZ10: 3,240.08 | BB10: 3.52% | BC10: 18.97 | BD10: 16.00 | BE10: 0.02 | BF10: 0.05 | BG10: 5.60
A11: 8 | B11: 0.80 | C11: 10,594.00 | D11: 3.21% | E11: 6.97% | F11: 10,594.00 | G11: 10,000.00 | H11: 0.02 | I11: 0.04 | J11: 4,000.00 | L11: 10,594.00 | M11: 3.21% | N11: 6.97% | O11: 10,594.00 | P11: 10,000.00 | Q11: 0.02 | R11: 0.04 | S11: 4,000.00 | U11: VARIACIÓN DE LA REGLA DE TAYLOR (caso 2 menos caso 1) | AH11: 8 | AI11: 0.80 | AJ11: 9,556.48 | AK11: 4.01% | AL11: 6.67% | AM11: 9,556.48 | AN11: 9,257.38 | AO11: 2.00% | AP11: 5.00% | AQ11: 3,702.95 | AS11: 9,556.48 | AT11: 4.01% | AU11: 0.0667 | AV11: 9,556.48 | AW11: 9,257.38 | AX11: 2.00% | AY11: 5.00% | AZ11: 3,702.95 | BB11: 4.01% | BC11: 17.98 | BD11: 16.00 | BE11: 0.02 | BF11: 0.05 | BG11: 6.40
A12: 9 | B12: =B13-$G$27 -> 0.90 | C12: 10,297.00 | D12: 3.60% | E12: 5.49% | F12: 10,297.00 | G12: 10,000.00 | H12: 0.02 | I12: 0.04 | J12: 4,500.00 | L12: 10,297.00 | M12: 3.60% | N12: 5.49% | O12: 10,297.00 | P12: 10,000.00 | Q12: 0.02 | R12: 0.04 | S12: 4,500.00 | U12: rt | V12: rt-1 | W12: d-1 | X12: p | Y12: p0 | Z12: y | AA12: yo | AB12: ybarra | AC12: (yo-ybarra)/ybarra | AE12: 1-b1+q1 | AF12: =(1-AJ30+AJ45) -> 0.5 | AH12: 9 | AI12: =AI13-$AN$27 -> 0.90 | AJ12: 9,406.93 | AK12: 4.51% | AL12: 5.86% | AM12: 9,406.93 | AN12: 9,257.38 | AO12: 2.25% | AP12: 5.00% | AQ12: 4,165.82 | AS12: 9,406.93 | AT12: 4.51% | AU12: 0.0586 | AV12: 9,406.93 | AW12: 9,257.38 | AX12: 2.25% | AY12: 5.00% | AZ12: 4,165.82 | BB12: 4.51% | BC12: =$AI$51+($AJ$51*(BB12-$AL$51)) -> 16.99 | BD12: 16.00 | BE12: 0.02 | BF12: 0.05 | BG12: 7.20
A13: 10 | B13: 1.00 | C13: =((1/(1-($C$30)))*($B$30+($C$30*$D$30*-1)+$B$36+$B$39))-((1/(1-($C$30)))*$C$36*D13) -> 10,000.00 | D13: =$B$48*B13 -> 4.00% | E13: =$B$42+$C$42-$D$42+($E$42*($C$42-$F$42))+(((F13-$H$42)/$H$42)*$G$42) -> 4.00% | F13: =C13 -> 10,000.00 | G13: 10,000.00 | H13: 0.02 | I13: 0.04 | J13: 5,000.00 | L13: =((1/Q$48)*(R$48))-((1/Q$48)*(N$36*M13)) -> 10,000.00 | M13: =M$48*B13 -> 4.00% | N13: =$M$42+$N$42-$O$42+($P$42*($N$42-$Q$42))+(((O13-$S$42)/$S$42)*$R$42) -> 4.00% | O13: =L13 -> 10,000.00 | P13: 10,000.00 | Q13: 0.02 | R13: 0.04 | S13: 5,000.00 | U13: =U9-U5 -> 0.0% | V13: =V9-V5 -> 0.0% | W13: 0.00 | X13: 0.0% | Y13: 0.0% | Z13: 0.00 | AA13: 0.0 | AB13: 0.0 | AC13: 0.00% | AE13: A | AF13: =(AI30+(AJ30*AK30*-1)+AI36+AI39+AI42+(AI45*-1)+(AJ42*AK42)+(AL42-AL45)*(AI51+(AJ51*-1)*AL51)) -> 5384.0 | AH13: 10 | AI13: 1.00 | AJ13: =((1/(1-AJ30+AJ45))*(AI30+(AJ30*AK30*-1)+AI36+AI39+AI42+(AI45*-1)+(AJ42*AK42)+(AL42-AL45)*(AI51+(AJ51*-1)*AL51)))-(((AJ51*-1)*(AL42-AL45)+(AJ36*-1)/(1-AJ30+AJ45))*AK13) -> 9,257.3823 | AK13: =$AI$54*AI13 -> 5.00% | AL13: =AI48+AJ48-AK48+AL48*(AJ48-AM48)-AN48+((AN48/AO48)*AM13) -> 5.06% | AM13: =AJ13 -> 9,257.38 | AN13: 9,257.38 | AO13: =AP13*($AH13/$AH$23) -> 2.50% | AP13: 5.00% | AQ13: =AN13*$AH13/$AH$23 -> 4,628.69 | AS13: =((1/(1-$AU$30+$AU$45))*($AT$30+($AU$30*$AV$30*-1)+$AT$36+$AT$39+$AT$42+($AT$45*-1)+($AU$42*$AV$42)+($AW$42-$AW$45)*($AT$51+($AU$51*-1)*$AW$51)))-((($AU$51*-1)*($AW$42-$AW$45)+($AU$36*-1)/(1-$AU$30+$AU$45))*AT13) -> 9,257.3823 | AT13: =AT$54*AI13 -> 5.00% | AU13: =$AT$48+$AU$48-$AV$48+$AW$48*($AU$48-$AX$48)-$AY$48+(($AY$48/$AZ$48)*AV13) -> 0.0506 | AV13: =AS13 -> 9,257.38 | AW13: 9,257.38 | AX13: =AY13*($A13/$A$23) -> 2.50% | AY13: 5.00% | AZ13: 4,628.69 | BB13: 5.00% | BC13: =$AI$51+($AJ$51*(BB13-$AL$51)) -> 16.00 | BD13: 16.00 | BE13: =BF13*($A13/$A$23) -> 0.03 | BF13: 0.05 | BG13: 8.00
A14: 11 | B14: =B13+$G$27 -> 1.10 | C14: =((1/(1-($C$30)))*($B$30+($C$30*$D$30*-1)+$B$36+$B$39))-((1/(1-($C$30)))*$C$36*D14) -> 9,703.00 | D14: =$B$48*B14 -> 4.40% | E14: =$B$42+$C$42-$D$42+($E$42*($C$42-$F$42))+(((F14-$H$42)/$H$42)*$G$42) -> 2.51% | F14: =C14 -> 9,703.00 | G14: 10,000.00 | H14: 0.02 | I14: 0.04 | J14: 5,500.00 | L14: =((1/Q$48)*(R$48))-((1/Q$48)*(N$36*M14)) -> 9,703.00 | M14: =M$48*B14 -> 4.40% | N14: =$M$42+$N$42-$O$42+($P$42*($N$42-$Q$42))+(((O14-$S$42)/$S$42)*$R$42) -> 2.51% | O14: =L14 -> 9,703.00 | P14: 10,000.00 | Q14: 0.02 | R14: 0.04 | S14: 5,500.00 | AE14: e1*(e2+q2)+i1 | AF14: =((AJ51*-1)*(AL42-AL45)+(AJ36*-1)) -> 15200 | AH14: 11 | AI14: =AI13+$AN$27 -> 1.10 | AJ14: =((1/(1-$AJ$30+$AJ$45))*($AI$30+($AJ$30*$AK$30*-1)+$AI$36+$AI$39+$AI$42+($AI$45*-1)+($AJ$42*$AK$42)+($AL$42-$AL$45)*($AI$51+($AJ$51*-1)*$AL$51)))-((($AJ$51*-1)*($AL$42-$AL$45)+($AJ$36*-1)/(1-$AJ$30+$AJ$45))*AK14) -> 9,107.83 | AK14: =$AI$54*AI14 -> 5.50% | AL14: =$AI$48+$AJ$48-$AK$48+$AL$48*($AJ$48-$AM$48)-$AN$48+(($AN$48/$AO$48)*AM14) -> 4.25% | AM14: =AJ14 -> 9,107.83 | AN14: 9,257.38 | AO14: =AP14*($AH14/$AH$23) -> 2.75% | AP14: 5.00% | AQ14: =AN14*$AH14/$AH$23 -> 5,091.56 | AS14: =((1/(1-$AU$30+$AU$45))*($AT$30+($AU$30*$AV$30*-1)+$AT$36+$AT$39+$AT$42+($AT$45*-1)+($AU$42*$AV$42)+($AW$42-$AW$45)*($AT$51+($AU$51*-1)*$AW$51)))-((($AU$51*-1)*($AW$42-$AW$45)+($AU$36*-1)/(1-$AU$30+$AU$45))*AT14) -> 9,107.83 | AT14: 5.50% | AU14: =$AT$48+$AU$48-$AV$48+$AW$48*($AU$48-$AX$48)-$AY$48+(($AY$48/$AZ$48)*AV14) -> 0.0425 | AV14: =AS14 -> 9,107.83 | AW14: 9,257.38 | AX14: 2.75% | AY14: 5.00% | AZ14: 5,091.56 | BB14: 5.50% | BC14: =$AI$51+($AJ$51*(BB14-$AL$51)) -> 15.01 | BD14: 16.00 | BE14: =BF14*($A14/$A$23) -> 0.03 | BF14: 0.05 | BG14: 8.80
A15: 12 | B15: 1.20 | C15: 9,406.00 | D15: 4.79% | E15: 1.03% | F15: 9,406.00 | G15: 10,000.00 | H15: 0.02 | I15: 0.04 | J15: 6,000.00 | L15: 9,406.00 | M15: 4.79% | N15: 1.03% | O15: 9,406.00 | P15: 10,000.00 | Q15: 0.02 | R15: 0.04 | S15: 6,000.00 | AH15: 12 | AI15: =AI14+$AN$27 -> 1.20 | AJ15: 8,958.28 | AK15: 5.99% | AL15: 3.44% | AM15: 8,958.28 | AN15: 9,257.38 | AO15: 3.00% | AP15: 5.00% | AQ15: 5,554.43 | AS15: 8,958.28 | AT15: 5.99% | AU15: 0.0344 | AV15: 8,958.28 | AW15: 9,257.38 | AX15: 3.00% | AY15: 5.00% | AZ15: 5,554.43 | BB15: 5.99% | BC15: 14.02 | BD15: 16.00 | BE15: 0.03 | BF15: 0.05 | BG15: 9.60
A16: 13 | B16: 1.30 | C16: 9,109.00 | D16: 5.19% | E16: -0.46% | F16: 9,109.00 | G16: 10,000.00 | H16: 0.03 | I16: 0.04 | J16: 6,500.00 | L16: 9,109.00 | M16: 5.19% | N16: -0.46% | O16: 9,109.00 | P16: 10,000.00 | Q16: 0.03 | R16: 0.04 | S16: 6,500.00 | AF16: =(1/AF12)*AF13 -> 10768 | AH16: 13 | AI16: 1.30 | AJ16: 8,808.73 | AK16: 6.49% | AL16: 2.63% | AM16: 8,808.73 | AN16: 9,257.38 | AO16: 3.25% | AP16: 5.00% | AQ16: 6,017.30 | AS16: 8,808.73 | AT16: 6.49% | AU16: 0.0263 | AV16: 8,808.73 | AW16: 9,257.38 | AX16: 3.25% | AY16: 5.00% | AZ16: 6,017.30 | BB16: 6.49% | BC16: 13.02 | BD16: 16.00 | BE16: 0.03 | BF16: 0.05 | BG16: 10.40
A17: 14 | B17: 1.40 | C17: 8,812.00 | D17: 5.58% | E17: -1.94% | F17: 8,812.00 | G17: 10,000.00 | H17: 0.03 | I17: 0.04 | J17: 7,000.00 | L17: 8,812.00 | M17: 5.58% | N17: -1.94% | O17: 8,812.00 | P17: 10,000.00 | Q17: 0.03 | R17: 0.04 | S17: 7,000.00 | U17: =U4 -> rt | V17: rt-1 | W17: d-1 | X17: p | Y17: p0 | Z17: y | AA17: yo | AB17: ybarra | AC17: (yo-ybarra)/ybarra | AF17: =(AF14/AF12)*AF20 -> 2805.92 | AH17: 14 | AI17: 1.40 | AJ17: 8,659.18 | AK17: 6.98% | AL17: 1.82% | AM17: 8,659.18 | AN17: 9,257.38 | AO17: 3.50% | AP17: 5.00% | AQ17: 6,480.17 | AS17: 8,659.18 | AT17: 6.98% | AU17: 0.0182 | AV17: 8,659.18 | AW17: 9,257.38 | AX17: 3.50% | AY17: 5.00% | AZ17: 6,480.17 | BB17: 6.98% | BC17: 12.03 | BD17: 16.00 | BE17: 0.04 | BF17: 0.05 | BG17: 11.20
A18: 15 | B18: 1.50 | C18: 8,515.00 | D18: 5.98% | E18: -3.43% | F18: 8,515.00 | G18: 10,000.00 | H18: 0.03 | I18: 0.04 | J18: 7,500.00 | L18: 8,515.00 | M18: 5.98% | N18: -3.43% | O18: 8,515.00 | P18: 10,000.00 | Q18: 0.03 | R18: 0.04 | S18: 7,500.00 | U18: =U5 -> 3.0% | V18: =V5 -> 3.0% | W18: 0.25 | X18: 3.0% | Y18: 3.0% | Z18: 0.75 | AA18: 11,000.00 | AB18: 11,000.00 | AC18: 0.0% | AF18: =AF16-AF17 -> 7962.08 | AH18: 15 | AI18: 1.50 | AJ18: 8,509.63 | AK18: 7.48% | AL18: 1.01% | AM18: 8,509.63 | AN18: 9,257.38 | AO18: 3.75% | AP18: 5.00% | AQ18: 6,943.04 | AS18: 8,509.63 | AT18: 7.48% | AU18: 0.0101 | AV18: 8,509.63 | AW18: 9,257.38 | AX18: 3.75% | AY18: 5.00% | AZ18: 6,943.04 | BB18: 7.48% | BC18: 11.04 | BD18: 16.00 | BE18: 0.04 | BF18: 0.05 | BG18: 12.00
A19: 16 | B19: 1.59 | C19: 8,218.00 | D19: 6.38% | E19: -4.91% | F19: 8,218.00 | G19: 10,000.00 | H19: 0.03 | I19: 0.04 | J19: 8,000.00 | L19: 8,218.00 | M19: 6.38% | N19: -4.91% | O19: 8,218.00 | P19: 10,000.00 | Q19: 0.03 | R19: 0.04 | S19: 8,000.00 | U19: =U9 -> 3.0% | V19: =V9 -> 3.0% | W19: 0.25 | X19: 3.0% | Y19: 3.0% | Z19: 0.75 | AA19: 11,000.00 | AB19: 11,000.00 | AC19: 0.0% | AE19: r-y | AF19: =(AI48+(AJ48-AK48)+(AL48*(AJ48-AM48))-AN48) -> -0.45 | AH19: 16 | AI19: 1.59 | AJ19: 8,360.08 | AK19: 7.97% | AL19: 0.20% | AM19: 8,360.08 | AN19: 9,257.38 | AO19: 4.00% | AP19: 5.00% | AQ19: 7,405.91 | AS19: 8,360.08 | AT19: 7.97% | AU19: 0.0020 | AV19: 8,360.08 | AW19: 9,257.38 | AX19: 4.00% | AY19: 5.00% | AZ19: 7,405.91 | BB19: 7.97% | BC19: 10.05 | BD19: 16.00 | BE19: 0.04 | BF19: 0.05 | BG19: 12.80
A20: 17 | B20: 1.69 | C20: 7,921.00 | D20: 6.77% | E20: -6.40% | F20: 7,921.00 | G20: 10,000.00 | H20: 0.03 | I20: 0.04 | J20: 8,500.00 | L20: 7,921.00 | M20: 6.77% | N20: -6.40% | O20: 7,921.00 | P20: 10,000.00 | Q20: 0.03 | R20: 0.04 | S20: 8,500.00 | U20: =U13 -> 0.0% | V20: =V13 -> 0.0% | W20: 0 | X20: 0.0% | Y20: 0.0% | Z20: 0 | AA20: 0 | AB20: 0 | AC20: 0.0% | AE20: r | AF20: 9.2% | AH20: 17 | AI20: 1.69 | AJ20: 8,210.52 | AK20: 8.47% | AL20: -0.60% | AM20: 8,210.52 | AN20: 9,257.38 | AO20: 4.25% | AP20: 5.00% | AQ20: 7,868.77 | AS20: 8,210.52 | AT20: 8.47% | AU20: (0.0060) | AV20: 8,210.52 | AW20: 9,257.38 | AX20: 4.25% | AY20: 5.00% | AZ20: 7,868.77 | BB20: 8.47% | BC20: 9.06 | BD20: 16.00 | BE20: 0.04 | BF20: 0.05 | BG20: 13.60
A21: 18 | B21: 1.79 | C21: 7,624.00 | D21: 7.17% | E21: -7.88% | F21: 7,624.00 | G21: 10,000.00 | H21: 0.04 | I21: 0.04 | J21: 9,000.00 | L21: 7,624.00 | M21: 7.17% | N21: -7.88% | O21: 7,624.00 | P21: 10,000.00 | Q21: 0.04 | R21: 0.04 | S21: 9,000.00 | AH21: 18 | AI21: 1.79 | AJ21: 8,060.97 | AK21: 8.96% | AL21: -1.41% | AM21: 8,060.97 | AN21: 9,257.38 | AO21: 4.50% | AP21: 5.00% | AQ21: 8,331.64 | AS21: 8,060.97 | AT21: 8.96% | AU21: (0.0141) | AV21: 8,060.97 | AW21: 9,257.38 | AX21: 4.50% | AY21: 5.00% | AZ21: 8,331.64 | BB21: 8.96% | BC21: 8.07 | BD21: 16.00 | BE21: 0.05 | BF21: 0.05 | BG21: 14.40
A22: 19 | B22: 1.89 | C22: 7,327.00 | D22: 7.56% | E22: -9.37% | F22: 7,327.00 | G22: 10,000.00 | H22: 0.04 | I22: 0.04 | J22: 9,500.00 | L22: 7,327.00 | M22: 7.56% | N22: -9.37% | O22: 7,327.00 | P22: 10,000.00 | Q22: 0.04 | R22: 0.04 | S22: 9,500.00 | AE22: r | AF22: =(1/((1-AJ30+AJ45)+(((AJ51*-1)*(AL42-AL45)+(AJ36*-1))*(AN48/AO48))))*((1-AJ30+AJ45)*(AI48+(AJ48-AK48)+(AL48*(AJ48-AM48))-AN48)+((AN48/AO48)*(AI30+(AJ30*AK30*-1)+AI36+AI39+AI42+(AI45*-1)+(AJ42*AK42)+(AL42-AL45)*(AI51+(AJ51*-1)*AL51)))) -> 5.0% | AH22: 19 | AI22: 1.89 | AJ22: 7,911.42 | AK22: 9.46% | AL22: -2.22% | AM22: 7,911.42 | AN22: 9,257.38 | AO22: 4.75% | AP22: 5.00% | AQ22: 8,794.51 | AS22: 7,911.42 | AT22: 9.46% | AU22: (0.0222) | AV22: 7,911.42 | AW22: 9,257.38 | AX22: 4.75% | AY22: 5.00% | AZ22: 8,794.51 | BB22: 9.46% | BC22: 7.08 | BD22: 16.00 | BE22: 0.05 | BF22: 0.05 | BG22: 15.20
A23: 20 | B23: 1.99 | C23: 7,030.00 | D23: 7.96% | E23: -10.85% | F23: 7,030.00 | G23: 10,000.00 | H23: 0.04 | I23: 0.04 | J23: 10,000.00 | L23: 7,030.00 | M23: 7.96% | N23: -10.85% | O23: 7,030.00 | P23: 10,000.00 | Q23: 0.04 | R23: 0.04 | S23: 10,000.00 | AE23: Y | AF23: =(1/((1-AJ30+AJ45)+(((AJ51*-1)*(AL42-AL45)+(AJ36*-1))*(AN48/AO48))))*((AI30+(AJ30*AK30*-1)+AI36+AI39+AI42+(AI45*-1)+(AJ42*AK42)+(AL42-AL45)*(AI51+(AJ51*-1)*AL51))-(((AJ51*-1)*(AL42-AL45)+(AJ36*-1))*(AI48+(AJ48-AK48)+(AL48*(AJ48-AM48))-AN48))) -> 9,247.38 | AH23: 20 | AI23: 1.99 | AJ23: 7,761.87 | AK23: 9.95% | AL23: -3.03% | AM23: 7,761.87 | AN23: 9,257.38 | AO23: 5.00% | AP23: 5.00% | AQ23: 9,257.38 | AS23: 7,761.87 | AT23: 9.95% | AU23: (0.0303) | AV23: 7,761.87 | AW23: 9,257.38 | AX23: 5.00% | AY23: 5.00% | AZ23: 9,257.38 | BB23: 9.95% | BC23: 6.09 | BD23: 16.00 | BE23: 0.05 | BF23: 0.05 | BG23: 16.00
AF24: =(1/(AF12+(AF14*(AN48/AO48)))) -> 0.7564936393
AF25: =(AF13-(AF14*AF19)) -> 12224.0
A26: Y | B26: C | C26: I | D26: G | G26: 0.5 | L26: Y | M26: C | N26: I | O26: G | AH26: Y | AI26: C | AJ26: I | AK26: G | AL26: X | AM26: Q | AN26: 0.5 | AS26: Y | AT26: C | AU26: I | AV26: G | AW26: X | AX26: Q | BB26: r | BC26: tc | BD26: ISMovLine | BF26: LMMovLine
A27: =SUM(B27:D27) -> 10000.0 | B27: =A30 -> 7600.0 | C27: =A36 -> 1400.0 | D27: =A39 -> 1000.0 | G27: 0.099 | L27: =SUM(M27:O27) -> 10000.0 | M27: =L30 -> 7600.0 | N27: =L36 -> 1400.0 | O27: =L39 -> 1000.0 | AH27: =AI27+AJ27+AK27+AL27-AM27 -> 9247.4 | AI27: =AH30 -> 6997.9 | AJ27: =AH36 -> 1249.7 | AK27: =AH39 -> 1000.0 | AL27: =AH42 -> 2948.0 | AM27: =AH45 -> 2948.2 | AN27: 0.099 | AS27: =AT27+AU27+AV27+AW27-AX27 -> 9247.4 | AT27: =AS30 -> 6997.9 | AU27: =AS36 -> 1249.7 | AV27: =AS39 -> 1000.0 | AW27: =AS42 -> 2948.0 | AX27: =AS45 -> 2948.2 | BB27: =AT3 -> 0.05% | BC27: =$AT$51+($AU$51*(BB27-$AW$51)) -> 25.90 | BD27: =$BC$37 -> 16.00 | BE27: =BF27*($A3/$A$23) -> 0 | BF27: =$BB$37 -> 0.05 | BG27: =BD27*$A3/$A$23 -> 0
A28: FUNCIÓN CONSUMO | L28: FUNCIÓN CONSUMO | AH28: FUNCIÓN CONSUMO | AS28: FUNCIÓN CONSUMO | BB28: =AT4 -> 0.55% | BC28: =$AT$51+($AU$51*(BB28-$AW$51)) -> 24.91 | BD28: =$BC$37 -> 16.00 | BE28: =BF28*($A4/$A$23) -> 0.00 | BF28: =$BB$37 -> 0.05 | BG28: =BD28*$A4/$A$23 -> 0.80
A29: C | B29: b0 | C29: b1 | D29: T | L29: C | M29: b0 | N29: b1 | O29: T | AH29: C | AI29: b0 | AJ29: b1 | AK29: T | AS29: C | AT29: b0 | AU29: b1 | AV29: T | BB29: 1.04% | BC29: 23.92 | BD29: 16.00 | BE29: 0.01 | BF29: 0.05 | BG29: 1.60
A30: =B30+C30*(A48-D30) -> 7600.0 | B30: =IS_RM!C10 -> 400.0 | C30: =IS_RM!D10 -> 0.80 | D30: =IS_RM!E10 -> 1000.00 | L30: =M30+N30*(L48-O30) -> 7600.0 | M30: =B30 -> 400.0 | N30: =C30 -> 0.80 | O30: =E53 -> 1000.00 | AH30: =AI30+AJ30*(AH54-AK30) -> 6997.9 | AI30: =IS_RM_ER!C10 -> 400.0 | AJ30: =IS_RM_ER!D10 -> 0.8 | AK30: =IS_RM_ER!E10 -> 1000.0 | AS30: =AT30+AU30*(AS54-AV30) -> 6997.9 | AT30: =AI30 -> 400.0 | AU30: =AJ30 -> 0.80 | AV30: =AH64 -> 1000.00 | BB30: 1.54% | BC30: 22.93 | BD30: 16.00 | BE30: 0.01 | BF30: 0.05 | BG30: 2.40
A31: FUNCIÓN AHORRO | L31: FUNCIÓN AHORRO | AH31: FUNCIÓN AHORRO | AS31: FUNCIÓN AHORRO | BB31: 2.03% | BC31: 21.94 | BD31: 16.00 | BE31: 0.01 | BF31: 0.05 | BG31: 3.20
A32: S | B32: -b0 | C32: 1-b1 | D32: T | L32: S | M32: -b0 | N32: 1-b1 | O32: T | AH32: S | AI32: -b0 | AJ32: 1-b1 | AK32: T | AS32: S | AT32: -b0 | AU32: 1-b1 | AV32: T | BB32: 2.53% | BC32: 20.95 | BD32: 16.00 | BE32: 0.01 | BF32: 0.05 | BG32: 4.00
A33: =B33+C33*(A48-D33) -> 1400.0 | B33: =B30*-1 -> -400.0 | C33: =1-C30 -> 0.20 | D33: =D30 -> 1000.0 | L33: =M33+N33*(L48-O33) -> 1400.0 | M33: =M30*-1 -> -400.0 | N33: =1-N30 -> 0.20 | O33: =O30 -> 1000.0 | AH33: =AI33+AJ33*(AH54-AK33) -> 1249.5 | AI33: =AI30*-1 -> -400.0 | AJ33: =1-AJ30 -> 0.20 | AK33: =AK30 -> 1000.0 | AS33: =AT33+AU33*(AS54-AV33) -> 1249.5 | AT33: =AT30*-1 -> -400.0 | AU33: =1-AU30 -> 0.20 | AV33: =AV30 -> 1000.0 | BB33: 3.02% | BC33: 19.96 | BD33: 16.00 | BE33: 0.02 | BF33: 0.05 | BG33: 4.80
A34: FUNCIÓN INVERSIÓN | L34: FUNCIÓN INVERSIÓN | AH34: FUNCIÓN INVERSIÓN | AS34: FUNCIÓN INVERSIÓN | BB34: 3.52% | BC34: 18.97 | BD34: 16.00 | BE34: 0.02 | BF34: 0.05 | BG34: 5.60
A35: I | B35: i0 | C35: i1 | E35: =((1/(1-($C$30)))*($B$30+($C$30*$D$30*-1)+$B$36+$B$39))-((1/(1-($C$30)))*$C$36*D13) -> 10,000.00 | L35: I | M35: i0 | N35: i1 | AH35: I | AI35: i0 | AJ35: i1 | AS35: I | AT35: i0 | AU35: i1 | BB35: 4.01% | BC35: 17.98 | BD35: 16.00 | BE35: 0.02 | BF35: 0.05 | BG35: 6.40
A36: =B36-C36*B48 -> 1400.0 | B36: =IS_RM!C14 -> 2000.0 | C36: =IS_RM!D14*-1 -> 15000.0 | L36: =M36-N36*M48 -> 1400.0 | M36: =B36 -> 2000.0 | N36: =C36 -> 15000.0 | AH36: =AI36+AJ36*AI54 -> 1249.7 | AI36: =IS_RM_ER!C14 -> 2000.0 | AJ36: =IS_RM_ER!D14 -> -15000.0 | AS36: =AT36+AU36*AT54 -> 1249.7 | AT36: =AI36 -> 2000.0 | AU36: =AJ36 -> -15000.0 | BB36: =AT12 -> 4.51% | BC36: 16.99 | BD36: 16.00 | BE36: 0.02 | BF36: 0.05 | BG36: 7.20
A37: FUNCIÓN GASTO DE GOBIERNO | D37: Déficit Público | L37: FUNCIÓN GASTO DE GOBIERNO | O37: Déficit Público | AH37: FUNCIÓN GASTO DE GOBIERNO | AK37: Déficit Público | AS37: FUNCIÓN GASTO DE GOBIERNO | AV37: Déficit Público | BB37: =AT13 -> 5.00% | BC37: =$AT$51+($AU$51*(BB37-$AW$51)) -> 16.00 | BD37: =$BC$37 -> 16.00 | BE37: 0.03 | BF37: 0.05 | BG37: 8.00
A38: G | B38: g0 | D38: T-G | L38: G | M38: g0 | O38: T-G | AH38: G | AI38: g0 | AK38: T-G | AS38: G | AT38: g0 | AV38: T-G | BB38: 5.50% | BC38: 15.01 | BD38: 16.00 | BE38: 0.03 | BF38: 0.05 | BG38: 8.80
A39: =B39 -> 1000.0 | B39: =IS_RM!C18 -> 1000.0 | D39: =D30-B39 -> 0 | L39: =M39 -> 1000.0 | M39: =F53 -> 1000.0 | O39: =O30-M39 -> 0 | AH39: =AI39 -> 1000.0 | AI39: =IS_RM_ER!C18 -> 1000.0 | AK39: =AK30-AI39 -> 0 | AS39: =AT39 -> 1000.0 | AT39: =AI64 -> 1000.0 | AV39: =AV30-AT39 -> 0 | BB39: 5.99% | BC39: 14.02 | BD39: 16.00 | BE39: 0.03 | BF39: 0.05 | BG39: 9.60
A40: FUNCIÓN DEMANDA DE DINERO | L40: FUNCIÓN DEMANDA (OFERTA) DE DINERO | AH40: FUNCION EXPORTACIONES | BB40: 6.49% | BC40: 13.02 | BD40: 16.00 | BE40: 0.03 | BF40: 0.05 | BG40: 10.40
A41: rr | B41: rnat | C41: p | D41: pe | E41: d-1 | F41: p0 | G41: y | H41: ybarra | J41: pendiente | L41: rr | M41: rnat | N41: p | O41: pe | P41: d-1 | Q41: p0 | R41: y | S41: ybarra | AH41: X | AI41: x0 | AJ41: x1 | AK41: YRM | AL41: x2 | AM41: TC | AS41: X | AT41: x0 | AU41: x1 | AV41: YRM | AW41: x2 | AX41: TC | BB41: 6.98% | BC41: 12.03 | BD41: 16.00 | BE41: 0.04 | BF41: 0.05 | BG41: 11.20
A42: =B42+C42-D42+(E42*(C42-F42))+(((A48-H42)/H42)*G42) -> 4.0% | B42: =IS_RM!C22 -> 4.0% | C42: =IS_RM!D22 -> 3.0% | D42: =IS_RM!E22 -> 3.0% | E42: =IS_RM!F22 -> 0.50 | F42: =IS_RM!G22 -> 3.0% | G42: =IS_RM!H22 -> 0.50 | H42: =IS_RM!I22 -> 10000.000 | I42: =G42*((A48-H42)/H42) -> 0 | J42: =G42*((A48-H42)/H42) -> 0 | L42: =M42+N42-O42+(P42*(N42-Q42))+(((L48-S42)/S42)*R42) -> 4.0% | M42: =B42 -> 4.0% | N42: =A53 -> 3.0% | O42: =B53 -> 3.0% | P42: =E42 -> 0.50 | Q42: =C53 -> 3.0% | R42: =G42 -> 0.50 | S42: =D53 -> 10000.000 | T42: =R42*((L48-S42)/S42) -> 0 | AH42: =AI42+AJ42*AK42+AL42*AM42 -> 2,948.00 | AI42: =IS_RM_ER!C22 -> 940 | AJ42: =IS_RM_ER!D22 -> 0.02 | AK42: =IS_RM_ER!E22 -> 100000 | AL42: =IS_RM_ER!F22 -> 0.5 | AM42: =AH51 -> 16 | AS42: =AT42+AU42*AV42+AW42*AX42 -> 2,948.00 | AT42: =AI42 -> 940 | AU42: =AJ42 -> 0.02 | AV42: =AJ64 -> 100000.00 | AW42: =AL42 -> 0.5 | AX42: =AM42 -> 15.99590952 | BB42: 7.48% | BC42: 11.04 | BD42: 16.00 | BE42: 0.04 | BF42: 0.05 | BG42: 12.00
AH43: FUNCION IMPORTACIONES | AS43: FUNCION IMPORTACIONES | BB43: 7.97% | BC43: 10.05 | BD43: 16.00 | BE43: 0.04 | BF43: 0.05 | BG43: 12.80
AH44: Q | AI44: q0 | AJ44: q1 | AK44: Y | AL44: q2 | AM44: TC | AS44: Q | AT44: q0 | AU44: q1 | AV44: Y | AW44: q2 | AX44: TC | BB44: 8.47% | BC44: 9.06 | BD44: 16.00 | BE44: 0.04 | BF44: 0.05 | BG44: 13.60
AH45: =AI45+AJ45*AK45+AL45*AM45 -> 2,948.22 | AI45: =IS_RM_ER!C26 -> 182 | AJ45: =IS_RM_ER!D26 -> 0.3 | AK45: =AH54 -> 9247.38 | AL45: =IS_RM_ER!F26 -> -0.5 | AM45: =AH51 -> 16 | AS45: =AT45+AU45*AV45+AW45*AX45 -> 2,948.22 | AT45: =AI45 -> 182 | AU45: =AJ45 -> 0.3 | AV45: =AS54 -> 9247.38 | AW45: =AL45 -> -0.5 | AX45: =AM45 -> 15.99590952 | BB45: 8.96% | BC45: 8.07 | BD45: 16.00 | BE45: 0.05 | BF45: 0.05 | BG45: 14.40
AH46: regla de taylor | AS46: regla de taylor | BB46: 9.46% | BC46: 7.08 | BD46: 16.00 | BE46: 0.05 | BF46: 0.05 | BG46: 15.20
A47: Y | B47: rn | C47: multiplica | D47: Pend. IS | E47: Pend. LM | F47: 1-b1 | G47: Absorción | H47: Ddin auto | L47: Y | M47: rn | N47: multiplica | O47: Pend. IS | P47: Pend. LM | Q47: 1-b1 | R47: Absorción | S47: Ddin auto | AH47: rr | AI47: rnat | AJ47: p | AK47: pe | AL47: d-1 | AM47: p0 | AN47: y | AO47: ybarra | AQ47: pendiente | AS47: rr | AT47: rnat | AU47: p | AV47: pe | AW47: d-1 | AX47: p0 | AY47: y | AZ47: ybarra | BB47: 9.95% | BC47: 6.09 | BD47: 16.00 | BE47: 0.05 | BF47: 0.05 | BG47: 16.00
A48: =C48*(G48-(C36*H48)) -> 10000.0 | B48: =C48*((F48*H48)+(G42/H42*G48)) -> 4% | C48: =1/((1-(C30))+(C36*G42/H42)) -> 1.05 | D48: =F48/C36*-1 -> -0.000013333 | E48: =G42/H42 -> 0.0000500000 | F48: =1-(C30) -> 0.20 | G48: =B30+(C30*D30*-1)+B36+B39 -> 2600.000 | H48: =B42+C42-D42+(E42*(C42-F42))-G42 -> -0.460 | L48: =N48*(R48-(N36*S48)) -> 10000.0 | M48: =N48*((Q48*S48)+(R42/S42*R48)) -> 4% | N48: =1/((1-(N30))+(N36*R42/S42)) -> 1.05 | O48: =Q48/N36*-1 -> -0.000013333 | P48: =R42/S42 -> 0.0000500000 | Q48: =1-(N30) -> 0.20 | R48: =M30+(N30*O30*-1)+M36+M39 -> 2600.000 | S48: =M42+N42-O42+(P42*(N42-Q42))-R42 -> -0.460 | AF48: =((AH54-AO48)/AO48)*AN48 -> 0.00 | AH48: =AI48+(AJ48-AK48)+(AL48*(AJ48-AM48))+(((AH54-AO48)/AO48)*AN48) -> 5.0% | AI48: =IS_RM_ER!C30 -> 5.0% | AJ48: =IS_RM_ER!D30 -> 3.0% | AK48: =IS_RM_ER!E30 -> 3.0% | AL48: =IS_RM_ER!F30 -> 0.50 | AM48: =IS_RM_ER!G30 -> 3.0% | AN48: =IS_RM_ER!H30 -> 0.50 | AO48: =IS_RM_ER!I30 -> 9,247.00 | AS48: =AT48+AU48-AV48+(AW48*(AU48-AX48))+(((AS54-AZ48)/AZ48)*AY48) -> 5.0% | AT48: =AI48 -> 5.0% | AU48: =AH59 -> 3.0% | AV48: =AI59 -> 3.0% | AW48: =AL48 -> 0.50 | AX48: =AJ59 -> 3.0% | AY48: =AN48 -> 0.50 | AZ48: =AK59 -> 9247.000 | BA48: =AY48*((AS54-AZ48)/AZ48) -> 2.045240725e-05
L49: DIFERENCIA ABSOLUTA Y PORCENTUAL | AH49: TIPO DE CAMBIO | AS49: TIPO DE CAMBIO
A50: POLÍTICA ECONÓMICA | L50: Y | M50: rn | N50: multiplica | O50: Pend. IS | P50: Pend. LM | Q50: Déficit Pub. | AH50: TC | AI50: e0 | AJ50: e1 | AK50: rn | AL50: rRM | AS50: TC | AT50: e0 | AU50: e1 | AV50: rn | AW50: rRM
A51: MONETARIA | E51: FISCAL | L51: =L48-A48 -> 0.0 | M51: =M48-B48 -> 0.0 | N51: =N48-C48 -> 0.0 | O51: =O48-D48 -> 0.000 | P51: =P48-E48 -> 0.000 | Q51: =O39/L48 -> 0 | AH51: =AI51+(AJ51*(AK51-AL51)) -> 16 | AI51: =IS_RM_ER!C34 -> 20.00 | AJ51: =IS_RM_ER!D34 -> (200.00) | AK51: =AI54 -> 5% | AL51: =IS_RM_ER!F34 -> 3.00% | AS51: =AT51+(AU51*(AV51-AW51)) -> 16 | AT51: =AI51 -> 20.00 | AU51: =AJ51 -> (200.00) | AV51: =AT54 -> 5% | AW51: =AK64 -> 0.03
A52: p | B52: pe | C52: p0 | D52: ybarra | E52: t | F52: g0 | L52: =L51/A48 -> 0.0% | M52: nd | N52: =N51/C48 -> 0.0% | O52: =O51/D48 -> 0.0% | P52: =P51/E48 -> 0.0% | Q52: =Q51/L48 -> 0.0%
A53: =C42+A54 -> 3.0% | B53: =D42+B54 -> 3.0% | C53: =F42+C54 -> 3.0% | D53: =H42*(1+D54) -> 10000.000 | E53: =D30*(1+E54) -> 1000.00 | F53: =B39*(1+F54) -> 1000.00 | AH53: Y | AI53: rn | AJ53: multiplica | AK53: Pend. IS | AL53: Pend. MR | AM53: 1-b1 | AN53: Absorción | AO53: Ddin auto | AS53: Y | AT53: rn | AU53: multiplica | AV53: Pend. IS | AW53: Pend. LM | AX53: 1-b1 | AY53: Absorción | AZ53: Ddin auto
A54: =IS_RM!B32 -> 0% | B54: =IS_RM!C32 -> 0% | C54: =IS_RM!D32 -> 0% | D54: =IS_RM!E32 -> 0% | E54: =IS_RM!F32 -> 0% | F54: =IS_RM!G32 -> 0% | AH54: =(1/((1-AJ30+AJ45)+(((AJ51*-1)*(AL42-AL45)+(AJ36*-1))*(AN48/AO48))))*((AI30+(AJ30*AK30*-1)+AI36+AI39+AI42+(AI45*-1)+(AJ42*AK42)+(AL42-AL45)*(AI51+(AJ51*-1)*AL51))-(((AJ51*-1)*(AL42-AL45)+(AJ36*-1))*(AI48+(AJ48-AK48)+(AL48*(AJ48-AM48))-AN48))) -> 9247.4 | AI54: =(1/((1-AJ30+AJ45)+(((AJ51*-1)*(AL42-AL45)+(AJ36*-1))*(AN48/AO48))))*((1-AJ30+AJ45)*(AI48+(AJ48-AK48)+(AL48*(AJ48-AM48))-AN48)+((AN48/AO48)*(AI30+(AJ30*AK30*-1)+AI36+AI39+AI42+(AI45*-1)+(AJ42*AK42)+(AL42-AL45)*(AI51+(AJ51*-1)*AL51)))) -> 5% | AJ54: =(1/((1-AJ30+AJ45)+(((AJ51*-1)*(AL42-AL45)+(AJ36*-1))*(AN48/AO48)))) -> 0.756494 | AK54: =1/(((AJ51*-1)*(AL42-AL45)+(AJ36*-1))/(1-AJ30+AJ45)*-1) -> -0.000032895 | AL54: =AN48/AO48 -> 0.0000540716 | AN54: =AI30+AJ30*AK30+AI36+AI39+AI42-AI45+AJ42*AK42+AI51*(AL42-AL45)+(AJ51*-1)*AL51*(AL42-AL45)-((AJ36*-1)+(AJ51*-1)*(AL42-AL45))*(AL51+(AJ48-AK48)+AL48*(AJ48-AM48)-AN48) -> 14128.000 | AO54: =AI48+AJ48-AK48+(AL48*(AJ48-AM48))-AN48 -> -0.450 | AS54: =(1/((1-AU30+AU45)+(((AU51*-1)*(AW42-AW45)+(AU36*-1))*(AY48/AZ48))))*((AT30+(AU30*AV30*-1)+AT36+AT39+AT42+(AT45*-1)+(AU42*AV42)+(AW42-AW45)*(AT51+(AU51*-1)*AW51))-(((AU51*-1)*(AW42-AW45)+(AU36*-1))*(AT48+(AU48-AV48)+(AW48*(AU48-AX48))-AY48))) -> 9247.4 | AT54: =(1/((1-AU30+AU45)+(((AU51*-1)*(AW42-AW45)+(AU36*-1))*(AY48/AZ48))))*((1-AU30+AU45)*(AT48+(AU48-AV48)+(AW48*(AU48-AX48))-AY48)+((AY48/AZ48)*(AT30+(AU30*AV30*-1)+AT36+AT39+AT42+(AT45*-1)+(AU42*AV42)+(AW42-AW45)*(AT51+(AU51*-1)*AW51)))) -> 5% | AU54: =(1/((1-AU30+AU45)+(((AU51*-1)*(AW42-AW45)+(AU36*-1))*(AY48/AZ48)))) -> 0.756494 | AV54: =1/(((AU51*-1)*(AW42-AW45)+(AU36*-1))/(1-AU30+AU45)*-1) -> -0.000032895 | AW54: =AY48/AZ48 -> 0.0000540716 | AX54: =1-(AU30) -> 0.20 | AY54: =AT30+(AU30*AV30*-1)+AT36+AT39 -> 2600.000 | AZ54: =AT48+AU48-AV48+(AW48*(AU48-AX48))-AY48 -> -0.450
AS55: DIFERENCIA ABSOLUTA Y PORCENTUAL
AH56: POLÍTICA ECONÓMICA | AS56: Y | AT56: rn | AU56: multiplica | AV56: Pend. IS | AW56: Pend. LM | AX56: Déficit Pub.
L57: VARIABLES | M57: VARIABLES | N57: ORIGINAL | O57: CHOQUE | P57: VAR ABS | Q57: VAR REL | AH57: MONETARIA | AS57: =AS54-AH54 -> 0.0 | AT57: =AT54-AI54 -> 0.0 | AU57: =AU54-AJ54 -> 0.0 | AV57: =AV54-AK54 -> 0.000 | AW57: =AW54-AL54 -> 0.000 | AX57: =AV39/AS54 -> 0
L58: Y | M58: Y | N58: =A48 -> 10,000.0 | O58: =L48 -> 10,000.00000 | P58: =O58-N58 -> 0 | Q58: =O58/N58-1 -> 0% | AH58: p | AI58: pe | AJ58: p0 | AK58: ybarra | AS58: =AS57/AH54 -> 0.0% | AT58: nd | AU58: =AU57/AJ54 -> 0.0% | AV58: =AV57/AK54 -> 0.0% | AW58: =AW57/AL54 -> 0.0% | AX58: =AX57/AS54 -> 0.0%
L59: r | M59: r | N59: =B48 -> 4.0% | O59: =M48 -> 4.0% | P59: =O59-N59 -> 0.0% | AH59: =AJ48+AH60 -> 3.0% | AI59: =AK48+AI60 -> 3.0% | AJ59: =AM48+AJ60 -> 3.0% | AK59: =AO48*(1+AK60) -> 9247.000
L60: C | M60: C | N60: =A30 -> 7,600.0 | O60: =L30 -> 7,600.00000 | P60: 0 | Q60: =O60/N60-1 -> 0% | AH60: =IS_RM_ER!B44 -> 0% | AI60: =IS_RM_ER!C44 -> 0% | AJ60: =IS_RM_ER!D44 -> 0% | AK60: =IS_RM_ER!E44 -> 0%
L61: S | M61: S | N61: =A33 -> 1,400.0 | O61: =L33 -> 1,400.00000 | P61: 0 | Q61: =O61/N61-1 -> 0%
A62: Regla de Taylor tasa de interés nominal | L62: I | M62: I | N62: =A36 -> 1,400.0 | O62: =L36 -> 1,400.00000 | P62: 0 | Q62: =O62/N62-1 -> 0% | AH62: FISCAL | AJ62: CHOQUE EXTERNO
A63: rt | B63: =B64+B69+(B70*(B65-B66))+(B71*((B67-B68)/B68)) -> 0.0525 | C63: =C64+C69+(C70*(C65-C66))+(C71*((C67-C68)/C68)) -> 0.05 | L63: G | M63: G | N63: =A39 -> 1,000.0 | O63: =L39 -> 1,000.00000 | P63: 0 | Q63: =O63/N63-1 -> 0% | AH63: t | AI63: g0 | AJ63: YRM | AK63: rRM | AS63: VARIABLES | AT63: VARIABLES | AU63: ORIGINAL | AV63: CHOQUE | AW63: VAR ABS | AX63: VAR REL
A64: rt-1 | B64: 0.05 | C64: 0.02 | L64: T | M64: T | N64: =D30 -> 1,000.0 | O64: =O30 -> 1,000.00000 | P64: 0 | Q64: =O64/N64-1 -> 0% | AH64: =AK30*(1+AH65) -> 1000.00 | AI64: =AI39*(1+AI65) -> 1000.00 | AJ64: =AK42*(1+AJ65) -> 100000.00 | AK64: =AK65+AL51 -> 3.0% | AS64: Y | AT64: Y | AU64: =AH54 -> 9,247.4 | AV64: =AS54 -> 9,247.37825 | AW64: =AV64-AU64 -> 0 | AX64: =AV64/AU64-1 -> 0%
A65: po | B65: 0.04 | C65: 0.03 | L65: DP | M65: DP | N65: =N64-N63 -> 0 | O65: =O64-O63 -> 0 | P65: =O65-N65 -> 0 | Q65: =P65/O58 -> 0% | AH65: =IS_RM_ER!B49 -> 0% | AI65: =IS_RM_ER!C49 -> 0% | AJ65: =IS_RM_ER!D49 -> 0% | AK65: =IS_RM_ER!E49 -> 0% | AS65: r | AT65: r | AU65: =AI54 -> 5.0% | AV65: =AT54 -> 5.0% | AW65: 0.0%
A66: pobj | B66: 0.03 | C66: 0.03 | L66: Ms | AS66: C | AT66: C | AU66: =AH30 -> 6,997.9 | AV66: =AS30 -> 6,997.90260 | AW66: 0 | AX66: =AV66/AU66-1 -> 0%
A67: yo | B67: 100 | C67: 100 | L67: Ms | AS67: S | AT67: S | AU67: =AH33 -> 1,249.5 | AV67: =AS33 -> 1,249.47565 | AW67: 0 | AX67: =AV67/AU67-1 -> 0%
A68: yp | B68: 100 | C68: 100 | M68: Multiplicador | N68: =C48 -> 1.1 | O68: =N48 -> 1.05263 | P68: 0 | Q68: =O68/N68-1 -> 0% | AH68: Regla de Taylor tasa de interés nominal | AS68: I | AT68: I | AU68: =AH36 -> 1,249.7 | AV68: =AS36 -> 1,249.69321 | AW68: 0 | AX68: =AV68/AU68-1 -> 0%
A69: alfa | B69: 0 | C69: =C65 -> 0.03 | M69: Pendiente IS | N69: =D48 -> -0.00001 | O69: =O48 -> -0.00001 | P69: 0 | Q69: =O69/N69-1 -> 0% | AH69: rt | AI69: =AI70+AI75+(AI76*(AI71-AI72))+(AI77*((AI73-AI74)/AI74)) -> 0.0525 | AJ69: =AJ70+AJ75+(AJ76*(AJ71-AJ72))+(AJ77*((AJ73-AJ74)/AJ74)) -> 0.05 | AS69: G | AT69: G | AU69: =AH39 -> 1,000.0 | AV69: =AS39 -> 1,000.00000 | AW69: 0 | AX69: =AV69/AU69-1 -> 0%
A70: beta | B70: 0.25 | C70: 0.25 | AH70: rt-1 | AI70: 0.05 | AJ70: 0.02 | AS70: T | AT70: T | AU70: =AK30 -> 1,000.0 | AV70: =AV30 -> 1,000.00000 | AW70: 0 | AX70: =AV70/AU70-1 -> 0%
A71: gama | B71: =1-B70 -> 0.75 | C71: =1-C70 -> 0.75 | M71: Pendiente LM | N71: =E48 -> 0.00005 | O71: =P48 -> 0.00005 | P71: 0 | Q71: =O71/N71-1 -> 0% | AH71: po | AI71: 0.04 | AJ71: 0.03 | AS71: DP | AT71: DP | AU71: =AU70-AU69 -> 0 | AV71: =AV39 -> 0 | AW71: 0 | AX71: =AW71/AV64 -> 0%
N72: Esta seccion muestra los efectos de la Política Económica | AH72: pobj | AI72: 0.03 | AJ72: 0.03 | AS72: Ms | AT72: X | AU72: =AH42 -> 2,948.0 | AV72: =AS42 -> 2,947.99795 | AW72: 0 | AX72: =AV72/AU72-1 -> 0%
AH73: yo | AI73: 100 | AJ73: 100 | AS73: Ms | AT73: Q | AU73: =AH45 -> 294821.6% | AV73: =AS45 -> 2,948.21552 | AW73: 0 | AX73: =AV73/AU73-1 -> 0%
AH74: yp | AI74: 100 | AJ74: 100 | AT74: TC | AU74: =AH51 -> 16.0 | AV74: =AS51 -> 15.99591 | AW74: 0 | AX74: =AV74/AU74-1 -> 0%
AH75: alfa | AI75: 0 | AJ75: =AJ71 -> 0.03 | AT75: YRM | AU75: =AK42 -> 100,000.00000 | AV75: =AV42 -> 100,000.00000 | AW75: 0 | AX75: =AV75/AU75-1 -> 0%
AH76: beta | AI76: 0.25 | AJ76: 0.25 | AT76: rRM | AU76: =AL51 -> 3% | AV76: =AW51 -> 3.0% | AW76: 0.0%
AH77: gama | AI77: =1-AI76 -> 0.75 | AJ77: =1-AJ76 -> 0.75 | AT77: P-Pe | AU77: =AJ48-AK48 -> 0% | AV77: =AU48-AV48 -> 0.0% | AW77: 0.0%
AT78: P-Po | AU78: =AJ48-AM48 -> 0% | AV78: =AU48-AX48 -> 0.0% | AW78: 0.0%
AT79: (Y-Ybar)/Ybar | AU79: =(AH54-AO48)/AO48 -> 0% | AV79: =(AS54-AZ48)/AZ48 -> 0.0% | AW79: 0.0%
